[Event "Titled Tuesday Blitz January 10 Early 2023"]
[White "Garakov, Mikhael"]
[Black "Samadov, Read"]
[WhiteFideId "4169034"]
[BlackFideId "13417444"]
[WhiteElo "2447"]
[BlackElo "2469"]
[Result "0-1"]
[Round "04"]
[TimeControl "180+2"]
[Date "2023.01.10"]
[WhiteClock "0:00:01"]
[BlackClock "0:00:38"]

1. e4 {[%clk 0:03:00]}  c5 {[%clk 0:03:00]} 2. Nf3 {[%clk 0:02:58]}  d6 {[%clk 0:03:00]} 3. d4 {[%clk 0:02:57]}  cxd4 {[%clk 0:03:00]} 4. Nxd4 {[%clk 0:02:58]}  Nf6 {[%clk 0:03:00]} 5. Nc3 {[%clk 0:02:58]}  a6 {[%clk 0:03:01]} 6. f4 {[%clk 0:02:57]}  e5 {[%clk 0:03:00]} 7. Nf3 {[%clk 0:02:56]}  Nbd7 {[%clk 0:03:01]} 8. a4 {[%clk 0:02:55]}  Be7 {[%clk 0:03:01]} 9. Bc4 {[%clk 0:02:54]}  O-O {[%clk 0:03:00]} 10. O-O {[%clk 0:02:52]}  b6 {[%clk 0:02:59]} 11. Qe2 {[%clk 0:01:40]}  Bb7 {[%clk 0:02:57]} 12. Rd1 {[%clk 0:01:41]}  b5 {[%clk 0:02:37]} 13. Bd5 {[%clk 0:01:35]}  Bxd5 {[%clk 0:02:31]} 14. Nxd5 {[%clk 0:01:33]}  Nxd5 {[%clk 0:02:31]} 15. exd5 {[%clk 0:01:33]}  Bf6 {[%clk 0:02:11]} 16. axb5 {[%clk 0:01:11]}  Qb6+ {[%clk 0:02:00]} 17. Be3 {[%clk 0:01:08]}  Qxb5 {[%clk 0:02:00]} 18. Qxb5 {[%clk 0:01:07]}  axb5 {[%clk 0:02:00]} 19. c3 {[%clk 0:00:41]}  Rfb8 {[%clk 0:01:42]} 20. f5 {[%clk 0:00:34]}  g6 {[%clk 0:01:35]} 21. g4 {[%clk 0:00:31]}  gxf5 {[%clk 0:01:32]} 22. gxf5 {[%clk 0:00:31]}  Ra4 {[%clk 0:01:31]} 23. Kf2 {[%clk 0:00:27]}  e4 {[%clk 0:01:26]} 24. Nd2 {[%clk 0:00:21]}  Ne5 {[%clk 0:01:23]} 25. Rxa4 {[%clk 0:00:18]}  bxa4 {[%clk 0:01:22]} 26. Nxe4 {[%clk 0:00:19]}  Rxb2+ {[%clk 0:01:20]} 27. Rd2 {[%clk 0:00:16]}  Bh4+ {[%clk 0:01:05]} 28. Ke2 {[%clk 0:00:14]}  a3 {[%clk 0:01:00]} 29. Rxb2 {[%clk 0:00:14]}  axb2 {[%clk 0:01:00]} 30. Nd2 {[%clk 0:00:15]}  Nc4 {[%clk 0:00:57]} 31. Nb1 {[%clk 0:00:15]}  Nxe3 {[%clk 0:00:43]} 32. Kxe3 {[%clk 0:00:15]}  Kg7 {[%clk 0:00:43]} 33. Kd3 {[%clk 0:00:14]}  Kf6 {[%clk 0:00:38]} 34. Kc2 {[%clk 0:00:12]}  Kxf5 {[%clk 0:00:39]} 35. Kxb2 {[%clk 0:00:13]}  Ke4 {[%clk 0:00:39]} 36. c4 {[%clk 0:00:13]}  Kd3 {[%clk 0:00:38]} 37. Kb3 {[%clk 0:00:13]}  f5 {[%clk 0:00:39]} 38. Na3 {[%clk 0:00:01]}  f4 {[%clk 0:00:39]} 39. Nc2 {[%clk 0:00:01]}  f3 {[%clk 0:00:39]} 40. Ne1+ {[%clk 0:00:01]}  Bxe1 {[%clk 0:00:38]} 0-1


[Site "https://www.chess.com"]

[Event "Titled Tuesday Blitz January 10 Early 2023"]
[White "Malek, Jan"]
[Black "Praggnanandhaa R"]
[WhiteFideId "21864080"]
[BlackFideId "25059530"]
[WhiteElo "2370"]
[BlackElo "2688"]
[Result "0-1"]
[Round "04"]
[TimeControl "180+2"]
[Date "2023.01.10"]
[WhiteClock "0:00:02"]
[BlackClock "0:00:51"]

1. c4 {[%clk 0:03:00]}  Nf6 {[%clk 0:02:51]} 2. Nf3 {[%clk 0:03:01]}  g6 {[%clk 0:02:51]} 3. d4 {[%clk 0:03:00]}  Bg7 {[%clk 0:02:52]} 4. Nc3 {[%clk 0:03:01]}  d6 {[%clk 0:02:52]} 5. e4 {[%clk 0:03:00]}  O-O {[%clk 0:02:50]} 6. g3 {[%clk 0:03:00]}  Nc6 {[%clk 0:02:49]} 7. Bg2 {[%clk 0:03:00]}  e5 {[%clk 0:02:49]} 8. d5 {[%clk 0:02:53]}  Nd4 {[%clk 0:02:49]} 9. Be3 {[%clk 0:02:48]}  Bg4 {[%clk 0:02:48]} 10. h3 {[%clk 0:02:44]}  Bxf3 {[%clk 0:02:48]} 11. Bxf3 {[%clk 0:02:45]}  Nd7 {[%clk 0:02:49]} 12. Bg2 {[%clk 0:02:40]}  c5 {[%clk 0:02:44]} 13. O-O {[%clk 0:02:36]}  f5 {[%clk 0:02:42]} 14. exf5 {[%clk 0:02:36]}  gxf5 {[%clk 0:02:31]} 15. f4 {[%clk 0:02:36]}  Kh8 {[%clk 0:02:29]} 16. Qd2 {[%clk 0:02:32]}  Rg8 {[%clk 0:02:28]} 17. Kh2 {[%clk 0:02:30]}  Qe7 {[%clk 0:02:26]} 18. Rae1 {[%clk 0:02:28]}  Qf7 {[%clk 0:02:25]} 19. b3 {[%clk 0:02:16]}  Qg6 {[%clk 0:02:25]} 20. Rg1 {[%clk 0:02:06]}  Nf6 {[%clk 0:02:17]} 21. Bxd4 {[%clk 0:01:51]}  cxd4 {[%clk 0:02:11]} 22. Nb5 {[%clk 0:01:43]}  Bh6 {[%clk 0:02:05]} 23. Bf3 {[%clk 0:00:44]}  e4 {[%clk 0:01:58]} 24. Bd1 {[%clk 0:00:42]}  d3 {[%clk 0:01:54]} 25. Nxd6 {[%clk 0:00:40]}  Rg7 {[%clk 0:01:38]} 26. Nb5 {[%clk 0:00:23]}  Rag8 {[%clk 0:01:37]} 27. Nd4 {[%clk 0:00:23]}  Nh5 {[%clk 0:01:32]} 28. Ne6 {[%clk 0:00:17]}  Nxg3 {[%clk 0:01:27]} 29. Nxg7 {[%clk 0:00:15]}  Bxg7 {[%clk 0:01:21]} 30. Qe3 {[%clk 0:00:10]}  Bc3 {[%clk 0:01:18]} 31. Qf2 {[%clk 0:00:01]}  Bxe1 {[%clk 0:00:52]} 32. Qxe1 {[%clk 0:00:02]}  e3 {[%clk 0:00:51]} 33. Qxe3 {[%clk 0:00:02]}  Nf1+ {[%clk 0:00:51]} 0-1


[Site "https://www.chess.com"]

[Event "Titled Tuesday Blitz January 10 Early 2023"]
[White "Bachmann, Axel"]
[Black "Ashraf, Artin"]
[WhiteFideId "3700488"]
[BlackFideId "22514805"]
[WhiteElo "2604"]
[BlackElo "2314"]
[Result "1-0"]
[Round "04"]
[TimeControl "180+2"]
[Date "2023.01.10"]
[WhiteClock "0:00:35"]
[BlackClock "0:00:01"]

1. e4 {[%clk 0:02:56]}  c5 {[%clk 0:02:58]} 2. Nf3 {[%clk 0:02:55]}  d6 {[%clk 0:02:57]} 3. d4 {[%clk 0:02:55]}  cxd4 {[%clk 0:02:58]} 4. Nxd4 {[%clk 0:02:56]}  Nf6 {[%clk 0:02:58]} 5. Nc3 {[%clk 0:02:55]}  a6 {[%clk 0:02:58]} 6. f4 {[%clk 0:02:47]}  e5 {[%clk 0:02:48]} 7. Nf3 {[%clk 0:02:46]}  Qb6 {[%clk 0:02:35]} 8. Bd3 {[%clk 0:02:38]}  Nbd7 {[%clk 0:02:29]} 9. Qe2 {[%clk 0:02:33]}  Be7 {[%clk 0:02:25]} 10. Rb1 {[%clk 0:02:32]}  Nc5 {[%clk 0:02:19]} 11. Be3 {[%clk 0:02:30]}  Qc7 {[%clk 0:02:19]} 12. O-O {[%clk 0:02:25]}  O-O {[%clk 0:02:17]} 13. Kh1 {[%clk 0:02:22]}  b5 {[%clk 0:02:15]} 14. a3 {[%clk 0:02:20]}  Bb7 {[%clk 0:02:14]} 15. Bd2 {[%clk 0:02:12]}  Ne6 {[%clk 0:02:07]} 16. fxe5 {[%clk 0:02:08]}  dxe5 {[%clk 0:02:05]} 17. Nh4 {[%clk 0:02:09]}  Nd4 {[%clk 0:01:42]} 18. Qe1 {[%clk 0:02:01]}  a5 {[%clk 0:01:35]} 19. Nf5 {[%clk 0:02:00]}  Nxf5 {[%clk 0:01:11]} 20. Rxf5 {[%clk 0:02:00]}  b4 {[%clk 0:01:12]} 21. axb4 {[%clk 0:01:59]}  axb4 {[%clk 0:01:11]} 22. Nd5 {[%clk 0:01:58]}  Nxd5 {[%clk 0:00:57]} 23. exd5 {[%clk 0:01:59]}  Bxd5 {[%clk 0:00:57]} 24. Rxe5 {[%clk 0:01:51]}  Be6 {[%clk 0:00:52]} 25. Rxe6 {[%clk 0:01:50]}  fxe6 {[%clk 0:00:51]} 26. Qxe6+ {[%clk 0:01:51]}  Kh8 {[%clk 0:00:51]} 27. Qh3 {[%clk 0:01:40]}  g6 {[%clk 0:00:41]} 28. Bxg6 {[%clk 0:01:38]}  Bf6 {[%clk 0:00:36]} 29. Bxb4 {[%clk 0:01:31]}  Rfb8 {[%clk 0:00:33]} 30. c3 {[%clk 0:01:25]}  Qg7 {[%clk 0:00:14]} 31. Be4 {[%clk 0:01:21]}  Ra7 {[%clk 0:00:12]} 32. Rf1 {[%clk 0:01:20]}  Re8 {[%clk 0:00:11]} 33. Qf5 {[%clk 0:00:54]}  Rf7 {[%clk 0:00:08]} 34. g3 {[%clk 0:00:53]}  Rff8 {[%clk 0:00:03]} 35. Bxf8 {[%clk 0:00:50]}  Rxf8 {[%clk 0:00:04]} 36. Qh5 {[%clk 0:00:46]}  h6 {[%clk 0:00:03]} 37. Qg6 {[%clk 0:00:42]}  Be7 {[%clk 0:00:04]} 38. Rxf8+ {[%clk 0:00:36]}  Bxf8 {[%clk 0:00:05]} 39. Qxg7+ {[%clk 0:00:35]}  Bxg7 {[%clk 0:00:06]} 40. Kg2 {[%clk 0:00:35]}  Kg8 {[%clk 0:00:01]} 41. Kf3 {[%clk 0:00:35]} 1-0


[Site "https://www.chess.com"]

[Event "Titled Tuesday Blitz January 10 Early 2023"]
[White "Yaksin, Oleg"]
[Black "Ivic, Velimir"]
[WhiteFideId "24105880"]
[BlackFideId "950122"]
[WhiteElo "2389"]
[BlackElo "2595"]
[Result "1/2-1/2"]
[Round "04"]
[TimeControl "180+2"]
[Date "2023.01.10"]
[WhiteClock "0:00:10"]
[BlackClock "0:00:35"]

1. d4 {[%clk 0:03:00]}  Nf6 {[%clk 0:02:53]} 2. c4 {[%clk 0:03:01]}  g6 {[%clk 0:02:51]} 3. g3 {[%clk 0:03:00]}  Bg7 {[%clk 0:02:51]} 4. Bg2 {[%clk 0:03:01]}  O-O {[%clk 0:02:51]} 5. Nf3 {[%clk 0:03:02]}  d6 {[%clk 0:02:50]} 6. O-O {[%clk 0:03:02]}  Nbd7 {[%clk 0:02:50]} 7. Nc3 {[%clk 0:03:03]}  e5 {[%clk 0:02:50]} 8. Re1 {[%clk 0:03:00]}  Re8 {[%clk 0:02:44]} 9. e4 {[%clk 0:02:59]}  exd4 {[%clk 0:02:44]} 10. Nxd4 {[%clk 0:03:00]}  Nc5 {[%clk 0:02:44]} 11. h3 {[%clk 0:03:00]}  h6 {[%clk 0:02:45]} 12. b3 {[%clk 0:02:51]}  a5 {[%clk 0:02:43]} 13. Bb2 {[%clk 0:02:44]}  a4 {[%clk 0:02:43]} 14. b4 {[%clk 0:02:44]}  a3 {[%clk 0:02:42]} 15. Bc1 {[%clk 0:02:43]}  Ne6 {[%clk 0:02:42]} 16. Be3 {[%clk 0:02:38]}  Nxd4 {[%clk 0:02:21]} 17. Bxd4 {[%clk 0:02:37]}  Be6 {[%clk 0:02:22]} 18. Nd5 {[%clk 0:02:22]}  c6 {[%clk 0:02:18]} 19. Bb6 {[%clk 0:02:18]}  Qd7 {[%clk 0:02:15]} 20. Nc7 {[%clk 0:02:17]}  Bxh3 {[%clk 0:02:16]} 21. Nxa8 {[%clk 0:02:04]}  Rxa8 {[%clk 0:02:17]} 22. Bd4 {[%clk 0:01:54]}  Re8 {[%clk 0:02:08]} 23. Rc1 {[%clk 0:01:46]}  h5 {[%clk 0:01:51]} 24. Bc3 {[%clk 0:00:59]}  Bxg2 {[%clk 0:01:47]} 25. Kxg2 {[%clk 0:00:59]}  h4 {[%clk 0:01:41]} 26. gxh4 {[%clk 0:00:45]}  Qe6 {[%clk 0:01:19]} 27. e5 {[%clk 0:00:38]}  Nh5 {[%clk 0:01:18]} 28. exd6 {[%clk 0:00:11]}  Nf4+ {[%clk 0:01:18]} 29. Kg1 {[%clk 0:00:10]}  Qh3 {[%clk 0:01:18]} 30. Rxe8+ {[%clk 0:00:09]}  Kh7 {[%clk 0:01:19]} 31. Qf1 {[%clk 0:00:09]}  Qg4+ {[%clk 0:01:20]} 32. Kh2 {[%clk 0:00:10]}  Qxh4+ {[%clk 0:01:18]} 33. Kg1 {[%clk 0:00:11]}  Qg4+ {[%clk 0:01:12]} 34. Kh2 {[%clk 0:00:11]}  Qh5+ {[%clk 0:00:46]} 35. Kg1 {[%clk 0:00:10]}  Qg5+ {[%clk 0:00:41]} 36. Kh2 {[%clk 0:00:10]}  Qh4+ {[%clk 0:00:34]} 37. Kg1 {[%clk 0:00:10]}  Qg4+ {[%clk 0:00:35]} 38. Kh2 {[%clk 0:00:10]}  Qh4+ {[%clk 0:00:35]} 1/2-1/2


[Site "https://www.chess.com"]

[Event "Titled Tuesday Blitz January 10 Early 2023"]
[White "Zhigalko, Sergei"]
[Black "Khripachenko, Alexander"]
[WhiteFideId "13502956"]
[BlackFideId "54184975"]
[WhiteElo "2572"]
[BlackElo "2110"]
[Result "1-0"]
[Round "04"]
[TimeControl "180+2"]
[Date "2023.01.10"]
[WhiteClock "0:00:19"]
[BlackClock "0:01:07"]

1. e4 {[%clk 0:03:00]}  e5 {[%clk 0:02:57]} 2. Nf3 {[%clk 0:03:00]}  Nf6 {[%clk 0:02:50]} 3. Nxe5 {[%clk 0:02:57]}  d6 {[%clk 0:02:50]} 4. Nf3 {[%clk 0:02:57]}  Nxe4 {[%clk 0:02:50]} 5. Nc3 {[%clk 0:02:58]}  Nf6 {[%clk 0:02:50]} 6. d4 {[%clk 0:02:58]}  g6 {[%clk 0:02:50]} 7. Bg5 {[%clk 0:02:45]}  Bg7 {[%clk 0:02:49]} 8. Qe2+ {[%clk 0:02:45]}  Kf8 {[%clk 0:02:49]} 9. O-O-O {[%clk 0:02:44]}  h6 {[%clk 0:02:49]} 10. Be3 {[%clk 0:02:35]}  Nc6 {[%clk 0:02:49]} 11. d5 {[%clk 0:02:32]}  Ne7 {[%clk 0:02:48]} 12. Kb1 {[%clk 0:02:22]}  a6 {[%clk 0:02:48]} 13. Rg1 {[%clk 0:01:56]}  b5 {[%clk 0:02:47]} 14. Bd4 {[%clk 0:01:45]}  Bb7 {[%clk 0:02:42]} 15. g4 {[%clk 0:01:41]}  b4 {[%clk 0:02:08]} 16. Ne4 {[%clk 0:01:27]}  Nexd5 {[%clk 0:02:02]} 17. Nxf6 {[%clk 0:00:55]}  Bxf6 {[%clk 0:01:58]} 18. Qd2 {[%clk 0:00:52]}  Bxd4 {[%clk 0:01:41]} 19. Nxd4 {[%clk 0:00:50]}  Qf6 {[%clk 0:01:36]} 20. Bg2 {[%clk 0:00:50]}  Rb8 {[%clk 0:01:36]} 21. Bxd5 {[%clk 0:00:40]}  Bxd5 {[%clk 0:01:36]} 22. f4 {[%clk 0:00:41]}  Kg7 {[%clk 0:01:30]} 23. Nf5+ {[%clk 0:00:37]}  gxf5 {[%clk 0:01:28]} 24. Qxd5 {[%clk 0:00:29]}  Rb5 {[%clk 0:01:15]} 25. g5 {[%clk 0:00:18]}  hxg5 {[%clk 0:01:09]} 26. Rxg5+ {[%clk 0:00:19]}  Qxg5 {[%clk 0:01:07]} 27. Qd4+ {[%clk 0:00:19]}  Qf6 {[%clk 0:01:07]} 28. Rg1+ {[%clk 0:00:19]} 1-0


[Site "https://www.chess.com"]

[Event "Titled Tuesday Blitz January 10 Early 2023"]
[White "Arngrimsson, Dagur"]
[Black "Urazayev, Arystanbek"]
[WhiteFideId "2301288"]
[BlackFideId "13709810"]
[WhiteElo "2370"]
[BlackElo "2460"]
[Result "0-1"]
[Round "04"]
[TimeControl "180+2"]
[Date "2023.01.10"]
[WhiteClock "0:00:03"]
[BlackClock "0:01:01"]

1. e4 {[%clk 0:03:00]}  e6 {[%clk 0:03:00]} 2. b3 {[%clk 0:03:00]}  d5 {[%clk 0:03:00]} 3. Bb2 {[%clk 0:03:00]}  Nf6 {[%clk 0:02:59]} 4. Nc3 {[%clk 0:02:55]}  c5 {[%clk 0:02:58]} 5. exd5 {[%clk 0:02:51]}  exd5 {[%clk 0:02:57]} 6. Bb5+ {[%clk 0:02:51]}  Bd7 {[%clk 0:02:58]} 7. Qe2+ {[%clk 0:02:51]}  Be7 {[%clk 0:02:58]} 8. Nf3 {[%clk 0:02:35]}  O-O {[%clk 0:02:58]} 9. Bxd7 {[%clk 0:02:16]}  Nbxd7 {[%clk 0:02:57]} 10. O-O {[%clk 0:02:08]}  Re8 {[%clk 0:02:57]} 11. d4 {[%clk 0:02:02]}  Bd6 {[%clk 0:02:48]} 12. Qd3 {[%clk 0:01:48]}  Rc8 {[%clk 0:02:43]} 13. Rfe1 {[%clk 0:01:45]}  Rxe1+ {[%clk 0:02:32]} 14. Rxe1 {[%clk 0:01:44]}  c4 {[%clk 0:02:33]} 15. Qf5 {[%clk 0:01:44]}  Bb4 {[%clk 0:02:33]} 16. Re3 {[%clk 0:01:10]}  Bxc3 {[%clk 0:02:32]} 17. Bxc3 {[%clk 0:01:07]}  g6 {[%clk 0:02:23]} 18. Qg5 {[%clk 0:01:00]}  Nf8 {[%clk 0:02:18]} 19. bxc4 {[%clk 0:00:52]}  Ne6 {[%clk 0:02:06]} 20. Qh4 {[%clk 0:00:46]}  Rxc4 {[%clk 0:02:01]} 21. Ne5 {[%clk 0:00:38]}  Rc8 {[%clk 0:01:57]} 22. h3 {[%clk 0:00:31]}  Ne4 {[%clk 0:01:56]} 23. Qxd8+ {[%clk 0:00:28]}  Nxd8 {[%clk 0:01:57]} 24. Bb4 {[%clk 0:00:22]}  Rxc2 {[%clk 0:01:57]} 25. f3 {[%clk 0:00:22]}  Ng3 {[%clk 0:01:51]} 26. Nd7 {[%clk 0:00:20]}  Ne6 {[%clk 0:01:50]} 27. Nf6+ {[%clk 0:00:19]}  Kg7 {[%clk 0:01:49]} 28. Nxd5 {[%clk 0:00:20]}  Rxa2 {[%clk 0:01:40]} 29. Bd6 {[%clk 0:00:20]}  Nf5 {[%clk 0:01:30]} 30. Be5+ {[%clk 0:00:19]}  f6 {[%clk 0:01:31]} 31. Bxf6+ {[%clk 0:00:19]}  Kf7 {[%clk 0:01:32]} 32. Rb3 {[%clk 0:00:17]}  b6 {[%clk 0:01:27]} 33. Be5 {[%clk 0:00:16]}  Nexd4 {[%clk 0:01:26]} 34. Rd3 {[%clk 0:00:15]}  Ne2+ {[%clk 0:01:21]} 35. Kh2 {[%clk 0:00:15]}  h5 {[%clk 0:01:05]} 36. Bb8 {[%clk 0:00:14]}  h4 {[%clk 0:01:05]} 37. Ne3 {[%clk 0:00:14]}  Nfg3 {[%clk 0:01:02]} 38. Rd7+ {[%clk 0:00:10]}  Ke6 {[%clk 0:01:01]} 39. Rxa7 {[%clk 0:00:11]}  Rb2 {[%clk 0:01:01]} 40. Bxg3 {[%clk 0:00:05]}  hxg3+ {[%clk 0:01:00]} 41. Kh1 {[%clk 0:00:03]}  Rb1+ {[%clk 0:01:01]} 0-1


[Site "https://www.chess.com"]

[Event "Titled Tuesday Blitz January 10 Early 2023"]
[White "Rustemov, Alexander"]
[Black "Czernek, Tymon"]
[WhiteFideId "4119002"]
[BlackFideId "1199510"]
[WhiteElo "2525"]
[BlackElo "2314"]
[Result "0-1"]
[Round "04"]
[TimeControl "180+2"]
[Date "2023.01.10"]
[WhiteClock "0:00:02"]
[BlackClock "0:00:57"]

1. d4 {[%clk 0:02:56]}  d5 {[%clk 0:02:53]} 2. c4 {[%clk 0:02:55]}  e6 {[%clk 0:02:53]} 3. Nc3 {[%clk 0:02:56]}  Nf6 {[%clk 0:02:53]} 4. Nf3 {[%clk 0:02:56]}  Bb4 {[%clk 0:02:52]} 5. Bg5 {[%clk 0:02:55]}  dxc4 {[%clk 0:02:40]} 6. e4 {[%clk 0:02:54]}  c5 {[%clk 0:02:39]} 7. Bxc4 {[%clk 0:02:53]}  cxd4 {[%clk 0:02:35]} 8. Nxd4 {[%clk 0:02:53]}  Qa5 {[%clk 0:02:33]} 9. Bd2 {[%clk 0:02:52]}  Qc5 {[%clk 0:02:30]} 10. Bb5+ {[%clk 0:02:52]}  Bd7 {[%clk 0:02:27]} 11. Nb3 {[%clk 0:02:52]}  Qe7 {[%clk 0:02:26]} 12. Bd3 {[%clk 0:02:52]}  Nc6 {[%clk 0:02:21]} 13. a3 {[%clk 0:02:51]}  Bd6 {[%clk 0:02:17]} 14. f4 {[%clk 0:02:51]}  e5 {[%clk 0:02:12]} 15. f5 {[%clk 0:02:46]}  Nd4 {[%clk 0:02:11]} 16. Bg5 {[%clk 0:02:36]}  Bc6 {[%clk 0:02:07]} 17. O-O {[%clk 0:02:34]}  h6 {[%clk 0:02:02]} 18. Bh4 {[%clk 0:02:33]}  Nxb3 {[%clk 0:01:50]} 19. Qxb3 {[%clk 0:02:33]}  Bc5+ {[%clk 0:01:51]} 20. Kh1 {[%clk 0:02:30]}  Bd4 {[%clk 0:01:51]} 21. Ne2 {[%clk 0:02:16]}  Rd8 {[%clk 0:01:51]} 22. Nxd4 {[%clk 0:02:02]}  Rxd4 {[%clk 0:01:52]} 23. Bf2 {[%clk 0:01:50]}  Rd7 {[%clk 0:01:52]} 24. Qc2 {[%clk 0:01:43]}  Qd8 {[%clk 0:01:40]} 25. Rad1 {[%clk 0:01:11]}  O-O {[%clk 0:01:40]} 26. Qe2 {[%clk 0:01:05]}  a6 {[%clk 0:01:29]} 27. Bc5 {[%clk 0:00:46]}  Re8 {[%clk 0:01:29]} 28. Rfe1 {[%clk 0:00:44]}  Ba4 {[%clk 0:01:18]} 29. Bc2 {[%clk 0:00:38]}  Bxc2 {[%clk 0:01:15]} 30. Qxc2 {[%clk 0:00:38]}  Rxd1 {[%clk 0:01:13]} 31. Rxd1 {[%clk 0:00:37]}  Qc7 {[%clk 0:01:13]} 32. Rc1 {[%clk 0:00:10]}  Rc8 {[%clk 0:01:07]} 33. Qd1 {[%clk 0:00:07]}  Nxe4 {[%clk 0:01:04]} 34. Be3 {[%clk 0:00:08]}  Nf2+ {[%clk 0:01:02]} 35. Bxf2 {[%clk 0:00:02]}  Qxc1 {[%clk 0:01:02]} 36. Qg1 {[%clk 0:00:02]}  Qxg1+ {[%clk 0:01:00]} 37. Bxg1 {[%clk 0:00:02]}  e4 {[%clk 0:00:57]} 0-1


[Site "https://www.chess.com"]

[Event "Titled Tuesday Blitz January 10 Early 2023"]
[White "Mendez Fortes, Eduardo Jesus"]
[Black "Lagarde, Maxime"]
[WhiteFideId "3502376"]
[BlackFideId "662399"]
[WhiteElo "2250"]
[BlackElo "2579"]
[Result "0-1"]
[Round "04"]
[TimeControl "180+2"]
[Date "2023.01.10"]
[WhiteClock "0:01:35"]
[BlackClock "0:01:53"]

1. e4 {[%clk 0:03:00]}  e5 {[%clk 0:02:50]} 2. Nf3 {[%clk 0:03:00]}  d6 {[%clk 0:02:49]} 3. d4 {[%clk 0:03:00]}  exd4 {[%clk 0:02:49]} 4. Nxd4 {[%clk 0:03:01]}  Nf6 {[%clk 0:02:49]} 5. Nc3 {[%clk 0:03:01]}  Be7 {[%clk 0:02:49]} 6. Bf4 {[%clk 0:02:54]}  O-O {[%clk 0:02:49]} 7. Qd2 {[%clk 0:02:49]}  d5 {[%clk 0:02:49]} 8. exd5 {[%clk 0:02:46]}  Nxd5 {[%clk 0:02:48]} 9. Nxd5 {[%clk 0:02:42]}  Qxd5 {[%clk 0:02:49]} 10. Nb5 {[%clk 0:02:34]}  Qxd2+ {[%clk 0:02:22]} 11. Kxd2 {[%clk 0:02:31]}  Na6 {[%clk 0:02:22]} 12. Nxc7 {[%clk 0:02:29]}  Nxc7 {[%clk 0:02:22]} 13. Bxc7 {[%clk 0:02:30]}  Bg5+ {[%clk 0:02:18]} 14. f4 {[%clk 0:02:28]}  Bf6 {[%clk 0:02:19]} 15. c3 {[%clk 0:02:26]}  Bf5 {[%clk 0:02:17]} 16. Bd3 {[%clk 0:02:23]}  Rad8 {[%clk 0:02:16]} 17. Bxd8 {[%clk 0:02:22]}  Rxd8 {[%clk 0:02:17]} 18. Rad1 {[%clk 0:02:21]}  Rxd3+ {[%clk 0:02:14]} 19. Kc1 {[%clk 0:02:20]}  h5 {[%clk 0:02:13]} 20. Rxd3 {[%clk 0:02:19]}  Bxd3 {[%clk 0:02:14]} 21. Rd1 {[%clk 0:02:19]}  Be4 {[%clk 0:02:13]} 22. g3 {[%clk 0:02:17]}  h4 {[%clk 0:02:12]} 23. Re1 {[%clk 0:02:06]}  Bc6 {[%clk 0:02:11]} 24. Kc2 {[%clk 0:02:05]}  h3 {[%clk 0:02:09]} 25. c4 {[%clk 0:01:57]}  Kh7 {[%clk 0:02:08]} 26. b4 {[%clk 0:01:54]}  a6 {[%clk 0:02:08]} 27. Kb3 {[%clk 0:01:53]}  Kg6 {[%clk 0:02:03]} 28. a4 {[%clk 0:01:52]}  Kf5 {[%clk 0:02:01]} 29. Re3 {[%clk 0:01:50]}  Bd4 {[%clk 0:01:56]} 30. Re7 {[%clk 0:01:49]}  Bg1 {[%clk 0:01:56]} 31. Rxf7+ {[%clk 0:01:46]}  Kg6 {[%clk 0:01:56]} 32. Rf8 {[%clk 0:01:40]}  Bxh2 {[%clk 0:01:56]} 33. Rh8 {[%clk 0:01:38]}  Bg2 {[%clk 0:01:56]} 34. b5 {[%clk 0:01:37]}  Bg1 {[%clk 0:01:55]} 35. Kb4 {[%clk 0:01:36]}  h2 {[%clk 0:01:55]} 36. c5 {[%clk 0:01:37]}  axb5 {[%clk 0:01:54]} 37. a5 {[%clk 0:01:35]}  h1=Q {[%clk 0:01:53]} 0-1


[Site "https://www.chess.com"]

[Event "Titled Tuesday Blitz January 10 Early 2023"]
[White "Liang, Justin"]
[Black "Mahdavi, Reza"]
[WhiteFideId "2099942"]
[BlackFideId "12595926"]
[WhiteElo "2052"]
[BlackElo "2339"]
[Result "0-1"]
[Round "04"]
[TimeControl "180+2"]
[Date "2023.01.10"]
[WhiteClock "0:00:05"]
[BlackClock "0:01:12"]

1. d4 {[%clk 0:03:00]}  g6 {[%clk 0:02:46]} 2. e4 {[%clk 0:02:56]}  Bg7 {[%clk 0:02:40]} 3. Nf3 {[%clk 0:02:54]}  d6 {[%clk 0:02:41]} 4. Nc3 {[%clk 0:02:53]}  a6 {[%clk 0:02:41]} 5. Bg5 {[%clk 0:02:47]}  h6 {[%clk 0:02:41]} 6. Be3 {[%clk 0:02:47]}  e6 {[%clk 0:02:39]} 7. Qd2 {[%clk 0:02:46]}  b5 {[%clk 0:02:29]} 8. Ne2 {[%clk 0:02:32]}  Bb7 {[%clk 0:02:25]} 9. Ng3 {[%clk 0:02:31]}  Nf6 {[%clk 0:02:11]} 10. Bd3 {[%clk 0:02:28]}  Nbd7 {[%clk 0:02:08]} 11. h3 {[%clk 0:02:14]}  c5 {[%clk 0:02:00]} 12. c3 {[%clk 0:02:12]}  Qe7 {[%clk 0:01:53]} 13. O-O {[%clk 0:01:53]}  e5 {[%clk 0:01:53]} 14. a4 {[%clk 0:01:50]}  c4 {[%clk 0:01:53]} 15. Bc2 {[%clk 0:01:37]}  h5 {[%clk 0:01:51]} 16. d5 {[%clk 0:01:03]}  O-O {[%clk 0:01:46]} 17. Bg5 {[%clk 0:00:53]}  Nc5 {[%clk 0:01:46]} 18. axb5 {[%clk 0:00:50]}  axb5 {[%clk 0:01:47]} 19. Nh4 {[%clk 0:00:43]}  Qc7 {[%clk 0:01:40]} 20. f4 {[%clk 0:00:24]}  Rxa1 {[%clk 0:01:38]} 21. Rxa1 {[%clk 0:00:23]}  Nh7 {[%clk 0:01:38]} 22. f5 {[%clk 0:00:17]}  f6 {[%clk 0:01:20]} 23. Bh6 {[%clk 0:00:14]}  g5 {[%clk 0:01:20]} 24. Bxg7 {[%clk 0:00:12]}  Kxg7 {[%clk 0:01:17]} 25. Nxh5+ {[%clk 0:00:08]}  Kf7 {[%clk 0:01:13]} 26. Ng6 {[%clk 0:00:08]}  Ra8 {[%clk 0:01:13]} 27. Rxa8 {[%clk 0:00:07]}  Bxa8 {[%clk 0:01:14]} 28. h4 {[%clk 0:00:07]}  Qa7 {[%clk 0:01:13]} 29. Qc1 {[%clk 0:00:05]}  Nd3+ {[%clk 0:01:12]} 0-1


[Site "https://www.chess.com"]